bitfinex/quotes_ETHUSD_20230830
["timestamp","ask_amount","ask_price","bid_price","bid_amount"]
[1693417440898,14.50018452,1705.4,1705.2,3.84857501]
[1693417441321,12.95996534,1705.4,1705.2,3.84857501]
[1693417441618,12.95996534,1705.4,1705.3,0.3848575]
[1693417441823,12.95996534,1705.4,1705.2,3.84857501]
[1693417442139,12.95996534,1705.4,1705.3,0.8022004]
[1693417446105,12.95996534,1705.4,1705.3,0.80580603]
[1693417447945,15.83344599,1705.4,1705.3,0.80580603]
[1693417448316,21.69744599,1705.4,1705.3,0.80580603]
[1693417448516,24.35731251,1705.4,1705.3,0.00360563]
[1693417448856,25.89753169,1705.4,1705.3,0.67210597]
[1693417450251,27.33253169,1705.4,1705.3,0.67210597]
[1693417450471,26.10035635,1705.4,1705.3,0.67210597]
[1693417451152,26.10035635,1705.4,1705.3,0.00360563]
[1693417451334,27.98535635,1705.4,1705.3,0.67210597]
[1693417451854,27.98535635,1705.4,1705.3,0.00360563]
[1693417452217,27.98535635,1705.4,1704.8,14.23286]
[1693417452558,5.86448,1705.2,1704.9,1.423286]
[1693417452720,14.60244065,1705.2,1704.9,2.22750356]
[1693417453123,14.60244065,1705.2,1705.0,0.00363005]
[1693417453848,2.87348065,1705.1,1705.0,0.00363005]
[1693417454050,14.60298065,1705.1,1705.0,0.00363005]
[1693417454274,16.64972671,1705.1,1705.0,0.00363005]
[1693417454752,22.51447671,1705.1,1705.0,0.00363005]
[1693417454956,23.94947671,1705.1,1705.0,0.00363005]
[1693417455123,25.18178529,1705.1,1705.0,0.00363005]
[1693417455318,23.94947671,1705.1,1705.0,0.00363005]
[1693417462555,23.94947671,1705.1,1705.0,0.74220999]
[1693417468275,14.60298065,1705.1,1705.0,0.74220999]
[1693417469507,8.73823065,1705.1,1705.0,0.74220999]
[1693417469721,5.86475,1705.1,1705.0,0.74220999]
[1693417470188,11.7295,1705.1,1705.0,0.74220999]
[1693417480753,21.90273065,1705.1,1705.0,0.74220999]
[1693417480921,24.21623457,1705.1,1705.0,0.74220999]
[1693417481116,24.21623457,1705.1,1705.0,0.73857994]
[1693417481316,24.21623457,1705.1,1704.6,2.5756]
[1693417481534,2.87348065,1705.0,1704.6,2.5756]
[1693417481739,11.73102,1704.9,1704.7,0.66641303]
[1693417481935,14.60450065,1704.9,1704.7,0.66641303]
[1693417482138,14.60450065,1704.9,1704.8,0.0035039]
[1693417492532,14.60450065,1704.9,1704.8,0.67001167]
[1693417493753,16.83141872,1704.9,1704.8,0.67001167]
[1693417500409,22.69692872,1704.9,1704.8,0.67001167]
[1693417506394,5.86551,1704.9,1704.8,0.67001167]
[1693417506614,5.86481,1705.1,1704.8,0.67001167]
[1693417506828,1.54021918,1705.3,1704.8,18.26738167]
[1693417506829,7.09641858,1705.3,1704.8,18.26738167]
[1693417506986,9.96989923,1705.3,1704.9,2.4859]
[1693417507165,9.96989923,1705.3,1704.9,14.21653]
[1693417507166,14.60182065,1705.3,1704.9,14.21653]
[1693417507360,14.60182065,1705.3,1705.0,1.421653]
[1693417507603,8.73759065,1705.3,1705.0,1.421653]
[1693417507962,8.73759065,1705.3,1705.0,7.286733]
[1693417508170,8.73759065,1705.3,1705.1,0.00347947]
[1693417508442,8.73759065,1705.3,1705.1,5.86809947]
[1693417508600,8.73759065,1705.3,1705.2,0.58680995]
[1693417509716,5.86411,1705.3,1705.2,0.58680995]
[1693417509918,5.86411,1705.3,1705.1,0.00347947]
[1693417510238,5.86411,1705.3,1705.0,13.151663]
[1693417511438,5.86411,1705.3,1705.1,0.00347947]
[1693417512031,5.86411,1705.3,1705.1,5.86820947]
[1693417520852,5.86344,1705.5,1705.1,19.03270947]
[1693417521051,5.86344,1705.5,1705.2,1.90327095]
[1693417521257,11.7264,1705.6,1705.3,5.86407]
[1693417522354,11.7264,1705.6,1705.4,0.00345505]
[1693417522822,11.7264,1705.6,1705.4,0.6792168]
[1693417524664,5.86318,1705.6,1705.4,0.6792168]
[1693417525479,5.86318,1705.6,1705.4,1.91991548]
[1693417528327,5.86318,1705.6,1705.4,0.6792168]
[1693417528527,14.59988065,1705.6,1705.4,0.6792168]
[1693417533782,14.59988065,1705.6,1705.4,3.1711168]
[1693417538810,5.86318,1705.6,1705.4,3.1711168]
[1693417539112,5.86318,1705.6,1705.4,9.0348268]
[1693417539315,5.86318,1705.6,1705.4,10.52469448]
[1693417540194,5.86318,1705.6,1705.4,0.6792168]
[1693417540195,2.87348065,1705.5,1705.4,0.6792168]
[1693417540408,21.89862065,1705.5,1705.4,0.6792168]
[1693417540591,22.96703431,1705.5,1705.4,0.6792168]
[1693417540792,24.54483344,1705.5,1705.4,0.6792168]
[1693417541005,27.58561978,1705.5,1705.4,0.00345505]
[1693417541309,27.58561978,1705.5,1704.9,5.86543]
[1693417541491,1.435,1705.3,1704.9,5.86543]
[1693417541688,8.73796065,1705.2,1704.9,5.86543]
[1693417542032,8.73796065,1705.2,1705.0,0.75380848]
[1693417542235,8.73796065,1705.2,1705.0,0.7575575]
[1693417543219,5.86448,1705.2,1705.0,7.87146325]
[1693417555763,5.86448,1705.2,1705.0,10.31796325]
[1693417566574,5.86448,1705.2,1705.0,9.0691375]
[1693417567073,5.86448,1705.2,1705.0,0.7575575]
[1693417567074,14.60244065,1705.2,1705.0,0.7575575]
[1693417568348,20.46692065,1705.2,1705.0,0.7575575]
[1693417568551,14.60244065,1705.2,1705.0,0.7575575]
[1693417570953,20.46685065,1705.2,1705.0,0.7575575]
[1693417571148,22.65703572,1705.2,1705.0,0.7575575]
[1693417571869,24.09203572,1705.2,1705.0,0.7575575]
[1693417578995,2.87348065,1705.1,1705.0,0.7575575]
[1693417579295,14.60298065,1705.1,1705.0,0.7575575]
[1693417593247,5.86475,1705.1,1705.0,0.7575575]
[1693417593840,5.86475,1705.1,1705.0,1.41985725]
[1693417602148,5.86475,1705.1,1705.0,0.7575575]
[1693417602514,11.7295,1705.1,1705.0,0.7575575]
[1693417603658,14.60298065,1705.1,1705.0,0.7575575]
[1693417617666,8.63213455,1705.5,1705.0,18.3528575]
[1693417617963,8.63213455,1705.5,1705.2,5.86434]
[1693417617964,15.83111823,1705.5,1705.2,5.86434]
[1693417618165,14.60064065,1705.5,1705.2,5.86434]
[1693417618345,11.72716,1705.5,1705.2,5.86434]
[1693417619239,11.72716,1705.5,1705.3,0.0037245]
[1693417619563,11.72716,1705.5,1705.3,0.59053095]
[1693417619936,5.86342,1705.5,1705.3,0.59053095]
[1693417620138,5.86342,1705.5,1705.3,8.99855095]
[1693417622360,5.86342,1705.5,1705.3,8.99482645]
[1693417623259,5.86342,1705.5,1705.4,0.00371632]
[1693417623431,5.86342,1705.5,1705.4,1.4899626]
[1693417627355,5.86342,1705.5,1705.4,2.17368351]
[1693417628357,5.8628,1705.7,1705.4,8.03740351]
[1693417628556,8.73628065,1705.7,1705.4,8.03740351]
[1693417628811,14.59916065,1705.7,1705.4,8.03740351]
[1693417634278,14.59916065,1705.7,1705.4,6.55115723]
[1693417637915,14.59916065,1705.7,1705.4,0.68743723]
[1693417644919,8.73628065,1705.7,1705.4,12.41478723]
[1693417645086,8.73628065,1705.7,1705.4,6.55106723]
[1693417648225,21.94291498,1706.0,1705.4,12.41478723]
[1693417648407,11.73564065,1705.9,1705.5,1.24147872]
[1693417648591,17.59780065,1705.9,1705.5,3.60567872]
[1693417648787,17.59780065,1705.9,1705.5,4.28888348]
[1693417649191,17.59780065,1705.9,1705.6,0.00369998]
[1693417649394,23.46010065,1705.9,1705.6,0.00369998]
[1693417650306,23.46010065,1705.9,1705.5,3.60567872]
[1693417651220,23.46010065,1705.9,1705.6,0.68638866]
[1693417653832,25.23480065,1705.9,1705.6,0.68638866]
[1693417655562,26.66980065,1705.9,1705.6,0.68638866]
[1693417655855,30.33178072,1705.9,1705.6,0.68638866]
[1693417658330,28.89678072,1705.9,1705.6,0.68638866]
[1693417658532,1.435,1705.7,1705.6,0.68638866]
[1693417658743,16.03386065,1705.7,1705.6,0.68638866]
[1693417664766,10.17117065,1705.7,1705.6,0.68638866]
[1693417664957,11.36179326,1705.7,1705.6,0.68638866]
[1693417669642,17.22448326,1705.7,1705.6,0.68638866]
[1693417678889,24.62349686,1705.7,1705.6,0.68638866]
[1693417679093,28.10349686,1705.7,1705.6,0.68638866]
[1693417679299,28.10349686,1705.7,1705.6,0.68268868]
[1693417679495,28.10349686,1705.7,1705.1,14.26746]
[1693417679695,11.72693,1705.5,1705.1,14.26746]
[1693417679998,11.72693,1705.5,1705.2,0.68475337]
[1693417680202,11.72693,1705.5,1705.2,0.00373267]
[1693417680575,17.59048,1705.5,1705.2,0.00373267]
[1693417681307,17.59048,1705.5,1705.1,2.5384]
[1693417681506,2.87348065,1705.4,1705.1,2.5384]
[1693417681700,5.86407,1705.3,1705.1,2.5384]
[1693417681896,10.17255065,1705.3,1705.1,2.5384]
[1693417682275,10.17255065,1705.3,1705.2,0.00373267]
[1693417682912,16.03662065,1705.3,1705.2,0.00373267]
[1693417683108,17.22724326,1705.3,1705.2,0.00373267]
[1693417683306,17.22724326,1705.3,1705.1,2.5384]
[1693417683612,4.30848065,1705.2,1705.1,2.5384]
[1693417683905,10.17289065,1705.2,1705.1,2.5384]
[1693417684411,10.17289065,1705.2,1705.1,2.54214085]
[1693417684613,4.30848065,1705.2,1705.1,2.54214085]
[1693417686402,2.87348065,1705.2,1705.1,8.40689085]
[1693417687816,2.87348065,1705.2,1705.1,9.09330483]
[1693417696540,2.87348065,1705.2,1705.1,10.58912931]
[1693417708346,2.87348065,1705.2,1705.1,9.09330483]
[1693417715669,2.87348065,1705.2,1705.1,3.22855483]
[1693417724374,5.8639,1705.4,1705.1,9.09330483]
[1693417724676,2.87348065,1705.3,1705.1,9.09330483]
[1693417724862,2.87348065,1705.3,1705.1,14.95805483]
[1693417725641,2.87348065,1705.3,1705.1,17.10143533]
[1693417727061,5.8639,1705.4,1705.1,17.10143533]
[1693417727244,8.73738065,1705.4,1705.1,17.10143533]
[1693417735762,10.67798065,1705.4,1705.1,17.10143533]
[1693417737372,5.86348,1705.5,1705.1,17.10143533]
[1693417737697,8.73696065,1705.5,1705.2,7.57443353]
[1693417738014,8.73696065,1705.5,1705.2,8.27443061]
[1693417738174,8.73696065,1705.5,1705.3,0.00364757]
[1693417738773,14.60052065,1705.5,1705.3,0.00364757]
[1693417739386,16.37492065,1705.5,1705.3,0.00364757]
[1693417747514,16.37492065,1705.5,1705.4,0.70048461]
[1693417747715,14.60052065,1705.5,1705.4,0.70048461]
[1693417748513,14.60052065,1705.5,1705.4,0.70412401]
[1693417761930,15.83260788,1705.5,1705.4,0.70412401]
[1693417762328,14.60052065,1705.5,1705.4,0.70412401]
[1693417763428,15.83260788,1705.5,1705.4,0.70412401]
[1693417764163,14.60052065,1705.5,1705.4,0.70412401]
[1693417769638,15.83260788,1705.5,1705.4,0.70412401]
[1693417770571,14.60052065,1705.5,1705.4,0.70412401]
[1693417771832,15.83260788,1705.5,1705.4,0.70412401]
[1693417780782,14.60052065,1705.5,1705.4,0.70412401]
[1693417789109,14.55052065,1705.5,1705.4,0.70412401]
[1693417792833,1.23243251,1705.6,1705.4,6.88532641]
[1693417792996,2.87348065,1705.6,1705.4,6.88532641]
[1693417793982,2.87348065,1705.6,1705.4,12.74904641]
[1693417796046,2.87348065,1705.6,1705.4,6.88532641]
[1693417797348,2.87348065,1705.6,1705.4,12.74904641]
[1693417797651,2.87348065,1705.6,1705.5,1.27490464]
[1693417797942,2.87348065,1705.6,1705.5,1.9143922]
[1693417798327,2.87348065,1705.6,1705.5,1.91802343]
[1693417800039,2.87348065,1705.6,1705.5,7.78140343]
[1693417800245,2.87348065,1705.6,1705.5,7.30703743]
[1693417807750,7.76484,1705.8,1705.5,7.30703743]
[1693417807955,7.76484,1705.8,1705.5,15.54641743]
[1693417807956,2.87348065,1705.7,1705.5,15.54641743]
[1693417808548,2.87348065,1705.7,1705.6,1.03173727]
[1693417808854,2.87348065,1705.7,1705.6,6.89476727]
[1693417809050,2.87348065,1705.7,1705.6,7.53441554]
[1693417809355,2.87348065,1705.7,1705.6,7.5380386]
[1693417809656,2.87348065,1705.7,1705.6,6.50630133]
[1693417816655,2.82348065,1705.7,1705.6,6.50630133]
[1693417828785,5.86236,1705.8,1705.6,6.50630133]
[1693417828960,8.73584065,1705.8,1705.6,6.50630133]
[1693417831593,2.87348065,1705.7,1705.6,0.64327133]
[1693417831807,27.48136868,1705.7,1705.6,0.64327133]
[1693417831969,29.60882479,1705.7,1705.6,0.64327133]
[1693417832175,28.37759083,1705.7,1705.6,0.64327133]
[1693417832371,28.37759083,1705.7,1705.1,11.72928]
[1693417832596,7.5844988,1705.6,1705.1,11.72928]
[1693417832920,18.34899988,1705.5,1705.1,5.86463]
[1693417833090,5.86407,1705.3,1705.1,5.86463]
[1693417833271,8.73755065,1705.3,1705.2,0.00392425]
[1693417834303,8.73755065,1705.3,1705.1,5.86463]
[1693417835304,10.17255065,1705.3,1705.2,0.00392425]
[1693417835508,18.22665172,1705.3,1705.2,0.00392425]
[1693417836411,18.22665172,1705.3,1705.0,8.40538]
[1693417836571,16.03662065,1705.3,1705.0,8.40538]
[1693417837398,16.03662065,1705.3,1705.1,0.00393244]
[1693417837588,16.03662065,1705.3,1705.1,0.66143986]
[1693417853916,14.60162065,1705.3,1705.1,0.66143986]
[1693417856857,14.55162065,1705.3,1705.1,0.66143986]
[1693417862359,2.87348065,1705.2,1705.1,0.66143986]
[1693417862533,8.73789065,1705.2,1705.1,0.66143986]
[1693417862732,14.60230065,1705.2,1705.1,0.66143986]
[1693417863133,16.03730065,1705.2,1705.1,0.66143986]
[1693417863331,21.90171065,1705.2,1705.1,0.66143986]
[1693417863529,23.70577831,1705.2,1705.1,0.66143986]
[1693417864166,23.70577831,1705.2,1705.1,0.00393244]
[1693417864668,23.70577831,1705.2,1705.1,0.59675372]
[1693417864829,23.70577831,1705.2,1705.1,0.00393244]
[1693417865262,23.70577831,1705.2,1704.6,8.24605]
[1693417865446,0.87358407,1705.1,1704.6,8.24605]
[1693417865652,20.46929065,1705.0,1704.6,8.24605]
[1693417866461,20.46929065,1705.0,1704.7,0.00366666]
[1693417867539,21.90429065,1705.0,1704.7,5.86973666]
[1693417867742,21.90429065,1705.0,1704.8,0.59800754]
[1693417867937,22.66274053,1705.0,1704.8,0.59800754]
[1693417868354,22.66274053,1705.0,1704.9,0.00365026]
[1693417869340,22.66274053,1705.0,1704.8,0.59800754]
[1693417869746,22.66274053,1705.0,1704.6,2.3797]
[1693417870147,22.66274053,1705.0,1704.6,8.24617]
[1693417870470,22.66274053,1705.0,1704.7,0.00366666]
[1693417872841,22.66274053,1705.0,1704.7,5.86978666]
[1693417874375,22.66274053,1705.0,1704.7,0.00366666]
[1693417876835,22.66274053,1705.0,1704.7,1.02319094]
[1693417877846,22.66274053,1705.0,1704.7,0.00366666]
[1693417878047,22.66274053,1705.0,1704.7,1.02319378]
[1693417878866,22.66274053,1705.0,1704.7,0.00366666]
[1693417879066,22.66274053,1705.0,1704.7,1.02319431]
[1693417879789,24.60254053,1705.0,1704.7,0.00366666]
[1693417880199,24.60254053,1705.0,1704.7,1.02319082]
[1693417880793,24.60254053,1705.0,1704.7,0.00366666]
[1693417882786,24.60254053,1705.0,1704.8,0.59783949]
[1693417883280,24.60254053,1705.0,1704.9,0.00365026]
[1693417884285,24.60254053,1705.0,1704.8,0.59783949]
[1693417884505,24.60254053,1705.0,1704.6,9.78646]
[1693417884804,23.84409065,1705.0,1704.6,9.78646]
[1693417887307,23.84409065,1705.0,1704.7,0.00366666]
[1693417890885,1.435,1704.9,1704.7,0.00366666]
[1693417891091,14.60506065,1704.8,1704.7,0.00366666]
[1693417891718,21.90585065,1704.8,1704.7,0.00366666]
[1693417892017,24.68299371,1704.8,1704.7,0.00366666]
[1693417892679,26.58799371,1704.8,1704.5,2.4585]
[1693417892880,11.73294,1704.6,1704.5,2.4585]
[1693417893115,14.60642065,1704.6,1704.5,2.4585]
[1693417893295,14.60642065,1704.6,1704.5,2.46218307]
[1693417895213,14.60642065,1704.6,1704.5,0.00368307]
[1693417895214,16.2826622,1704.6,1704.5,0.00368307]
[1693417895415,22.1491322,1704.6,1704.5,0.00368307]
[1693417895997,24.0819322,1704.6,1704.5,0.00368307]
[1693417896397,24.0819322,1704.6,1704.3,2.4585]
[1693417896597,2.87348065,1704.5,1704.3,2.4585]
[1693417896797,8.74053065,1704.5,1704.3,2.4585]
[1693417897317,8.74053065,1704.5,1704.4,0.00354678]
[1693417897490,8.74053065,1704.5,1704.4,0.6042854]
[1693417897491,24.15025772,1704.5,1704.4,0.6042854]
[1693417898886,24.63025772,1704.5,1704.4,0.6042854]
[1693417901721,24.63025772,1704.5,1704.4,0.00354678]
[1693417901921,24.63025772,1704.5,1704.4,0.6042854]
[1693417903651,7.02910772,1704.5,1704.4,0.6042854]
[1693417903811,16.52235065,1704.5,1704.4,0.6042854]
[1693417904017,22.38940065,1704.5,1704.4,0.6042854]
[1693417906646,22.86782266,1704.5,1704.4,0.6042854]
[1693417909264,22.86782266,1704.5,1704.1,2.5802]
[1693417909457,1.435,1704.4,1704.1,2.5802]
[1693417909766,14.60850065,1704.3,1704.2,0.54267518]
[1693417910130,14.60850065,1704.3,1704.1,2.5802]
[1693417910326,14.60850065,1704.3,1704.2,0.00356319]
[1693417911273,14.60850065,1704.3,1704.1,2.5802]
[1693417912463,14.60850065,1704.3,1704.2,0.54623837]
[1693417912666,21.91101065,1704.3,1704.2,0.54623837]
[1693417912866,24.68883072,1704.3,1704.2,0.54623837]
[1693417913950,23.25383072,1704.3,1704.2,0.54623837]
[1693417918240,20.47601065,1704.3,1704.2,0.54623837]
[1693417924386,21.91101065,1704.3,1704.2,0.54623837]
[1693417924595,22.39101065,1704.3,1704.2,0.54623837]
[1693417929374,25.39101065,1704.3,1704.2,0.54623837]
[1693417938118,25.86330467,1704.3,1704.2,0.54623837]
[1693417938314,29.33636014,1704.3,1704.2,0.54623837]
[1693417939386,29.33636014,1704.3,1704.1,0.1]
[1693417939586,7.78848065,1704.2,1704.1,0.1]
[1693417939786,25.39203065,1704.2,1704.1,0.1]
[1693417940428,25.39203065,1704.2,1704.1,0.10357]
[1693417940601,27.24594386,1704.2,1704.1,0.10357]
[1693417942687,27.24594386,1704.2,1704.1,0.59342578]
[1693417943090,30.83936986,1704.2,1704.1,0.59342578]
[1693417943291,30.83936986,1704.2,1704.1,0.58985578]
[1693417943691,30.83936986,1704.2,1704.1,0.1]
[1693417944425,30.83936986,1704.2,1704.1,0.59342578]
[1693417951840,31.42778352,1704.2,1704.1,5.78e-06]
[1693417952350,31.42778352,1704.2,1704.0,0.1]
[1693417952556,23.620859,1704.1,1704.0,0.1]
[1693417952758,27.100859,1704.1,1704.0,0.1]
[1693417954057,28.535859,1704.1,1704.0,0.1]
[1693417957022,28.692979,1704.1,1704.0,0.1]
[1693417957282,4.435,1704.0,1703.9,0.1]
[1693417957573,4.435,1704.0,1703.8,0.1]
[1693417957574,32.01329098,1704.0,1703.8,0.1]
[1693417957740,7.78848065,1703.9,1703.8,0.1]
[1693417957944,25.39512065,1703.9,1703.8,0.1]
[1693417958630,25.39512065,1703.9,1703.8,0.50061488]
[1693417959162,25.39512065,1703.9,1703.8,0.1]
[1693417959372,28.537899,1703.9,1703.8,0.50061488]
[1693417960276,28.537899,1703.9,1703.8,0.50379937]
[1693417962276,28.537899,1703.9,1703.8,0.50061488]
[1693417962647,28.537899,1703.9,1703.8,0.1]
[1693417967570,29.41484865,1703.9,1703.8,0.1]
[1693417967989,29.87791151,1703.9,1703.8,0.1]
[1693417974370,30.46632517,1703.9,1703.8,0.1]
[1693417974591,3.0,1703.8,1703.7,0.1]
[1693417974791,29.14536098,1703.8,1703.7,0.1]
[1693417974995,29.14536098,1703.8,1703.6,0.1]
[1693417975195,6.35348065,1703.7,1703.6,0.1]
[1693417975427,23.96219065,1703.7,1703.6,0.1]
[1693417975723,27.104969,1703.7,1703.6,0.1]
[1693417976827,27.104969,1703.7,1703.6,0.38872846]
[1693417977321,27.104969,1703.7,1703.6,0.39236101]
[1693417978021,28.539969,1703.7,1703.6,0.39236101]
[1693417981742,17.61262065,1703.7,1703.6,0.39236101]
[1693417982033,23.48219065,1703.7,1703.6,0.39236101]
[1693417982600,5.86937,1703.8,1703.6,0.39236101]
[1693417982794,5.86957,1703.7,1703.6,0.39236101]
[1693417983017,8.74305065,1703.7,1703.6,0.39236101]
[1693417983729,14.61262065,1703.7,1703.6,0.39236101]
[1693417988119,8.74305065,1703.7,1703.6,0.39236101]
[1693417988321,2.87348065,1703.7,1703.6,0.39236101]
[1693417988714,8.74305065,1703.7,1703.6,0.39236101]
[1693417989919,14.61262065,1703.7,1703.6,0.39236101]
[1693417994419,8.74305065,1703.7,1703.6,0.39236101]
[1693417996640,2.87348065,1703.7,1703.6,0.39236101]
[1693417996848,2.87348065,1703.7,1703.6,1.02862011]
[1693417998336,2.87348065,1703.7,1703.6,6.89854011]
[1693417998707,8.74305065,1703.7,1703.6,1.02862011]
[1693417998936,8.74305065,1703.7,1703.6,0.39236101]
[1693417999647,14.61262065,1703.7,1703.6,0.39236101]
[1693418003014,16.04762065,1703.7,1703.6,0.39236101]
[1693418007428,16.04762065,1703.7,1703.6,0.38872846]
[1693418017796,14.61262065,1703.7,1703.6,0.38872846]
[1693418018097,8.74305065,1703.7,1703.6,0.38872846]
[1693418027395,2.87348065,1703.7,1703.6,0.38872846]
[1693418028125,2.87348065,1703.7,1703.6,1.61164231]
[1693418033030,2.87348065,1703.7,1703.6,7.48156231]
[1693418036058,2.87348065,1703.7,1703.6,1.61164231]
[1693418036858,8.74305065,1703.7,1703.6,1.61164231]
[1693418037164,21.91719065,1703.7,1703.6,0.38872846]
[1693418042324,22.39719065,1703.7,1703.6,0.38872846]
[1693418046167,22.39719065,1703.7,1703.6,0.1]
[1693418046892,26.62749303,1703.7,1703.6,0.1]
[1693418047195,32.93559776,1703.7,1703.6,0.1]
[1693418047336,31.39507408,1703.7,1703.6,0.1]
[1693418047537,33.83211616,1703.7,1703.5,0.1]
[1693418047791,7.89396559,1703.6,1703.5,0.1]
[1693418047943,3.0,1703.5,1703.4,0.1]
[1693418048147,31.37478239,1703.5,1703.4,0.1]
[1693418048509,31.96319605,1703.5,1703.3,0.1]
[1693418048639,10.56146916,1703.4,1703.3,0.1]
[1693418048839,26.94083239,1703.4,1703.3,0.1]
[1693418049077,29.62978133,1703.4,1703.3,0.1]
[1693418049375,29.93871582,1703.4,1703.3,0.1]
[1693418049940,29.62908119,1703.4,1703.3,0.1]
[1693418051254,28.39819408,1703.4,1703.3,0.1]
[1693418064173,3.0,1703.3,1703.2,0.1]
[1693418064386,29.2954159,1703.3,1703.2,0.1]
[1693418069767,30.7304159,1703.3,1703.2,0.1]
[1693418069962,30.7304159,1703.3,1703.2,0.44975397]
[1693418072804,30.7304159,1703.3,1703.2,0.1]
[1693418075089,30.7304159,1703.3,1703.2,0.44986596]
[1693418076803,30.7304159,1703.3,1703.2,0.1]
[1693418079283,31.19637275,1703.3,1703.2,0.1]
[1693418083226,31.19637275,1703.3,1703.2,0.44975397]
[1693418083514,31.19637275,1703.3,1703.2,0.1]
[1693418092605,32.42725986,1703.3,1703.2,0.1]
[1693418093128,32.42725986,1703.3,1703.0,0.1]
[1693418093129,3.0,1703.1,1703.0,0.1]
[1693418093327,41.67965092,1703.1,1703.0,0.1]
[1693418093532,1.435,1703.0,1702.9,0.1]
[1693418093825,26.83945065,1703.0,1702.9,0.1]
[1693418094611,25.40445065,1703.0,1702.9,0.1]
[1693418099333,23.96945065,1703.0,1702.9,0.1]
[1693418099700,23.48945065,1703.0,1702.9,0.1]
[1693418100302,20.48945065,1703.0,1702.9,0.1]
[1693418103915,2.87348065,1703.0,1702.9,0.1]
[1693418104114,5.8718,1703.1,1702.9,0.1]
[1693418104115,11.7437,1703.1,1702.9,0.96425]
[1693418104338,2.87348065,1703.1,1702.9,6.83658]
[1693418107669,8.74512065,1703.1,1702.9,6.83658]
[1693418108434,8.74512065,1703.1,1702.9,6.73658]
[1693418114970,2.87348065,1703.0,1702.8,8.5425]
[1693418115172,8.74569065,1703.0,1702.8,2.6701]
[1693418117428,8.74569065,1703.0,1702.8,8.54274]
[1693418118868,8.74569065,1703.0,1702.8,2.6701]
[1693418118869,14.61790065,1703.0,1702.8,2.6701]
[1693418121670,16.81035471,1703.0,1702.8,2.6701]
[1693418123966,24.11756471,1703.0,1702.8,2.6701]
[1693418124367,19.05199,1702.9,1702.8,2.6701]
[1693418124573,21.92547065,1702.9,1702.8,2.6701]
[1693418124953,16.05314065,1702.9,1702.8,2.6701]
[1693418126985,21.92547065,1702.9,1702.8,2.6701]
[1693418127493,24.51779312,1702.9,1702.8,2.6701]
[1693418131462,24.51779312,1702.9,1702.8,0.1]
[1693418131978,24.99779312,1702.9,1702.8,0.1]
[1693418133697,24.99779312,1702.9,1702.6,0.1]
[1693418133879,2.87348065,1702.8,1702.6,0.1]
[1693418134074,17.61906,1702.7,1702.6,0.1]
[1693418134393,22.54179472,1702.7,1702.6,0.1]
[1693418136098,20.49254065,1702.7,1702.6,0.1]
[1693418136318,20.49254065,1702.7,1702.6,0.05]
[1693418136485,14.61952065,1702.7,1702.6,0.05]
[1693418136887,2.87348065,1702.7,1702.6,0.05]
[1693418138581,11.74564,1702.8,1702.6,0.05]
[1693418138782,14.61912065,1702.8,1702.6,1.484317]
[1693418139190,5.87233,1702.9,1702.6,1.484317]
[1693418139391,2.87348065,1702.9,1702.6,19.104367]
[1693418142209,8.74582065,1702.9,1702.6,19.104367]
[1693418142406,8.74582065,1702.9,1702.7,1.05370415]
[1693418142707,8.74582065,1702.9,1702.7,6.92660415]
[1693418147447,2.87348065,1702.9,1702.7,6.92660415]
[1693418148724,2.87348065,1702.8,1702.7,5.8729]
[1693418148926,2.87348065,1702.8,1702.6,5.92322]
[1693418148927,8.74616065,1702.8,1702.6,5.92322]
[1693418149127,2.87348065,1702.8,1702.6,11.79647]
[1693418152844,14.61897065,1702.8,1702.6,0.05]
[1693418153020,16.66811372,1702.8,1702.6,0.05]
[1693418156048,8.74616065,1702.8,1702.6,0.05]
[1693418156245,8.74616065,1702.8,1702.6,5.92332]
[1693418157045,8.74616065,1702.8,1702.6,0.05]
[1693418157249,14.61897065,1702.8,1702.6,0.05]
[1693418163056,21.92678065,1702.8,1702.6,0.05]
[1693418163225,2.19267807,1702.7,1702.6,0.05]
[1693418163431,8.74650065,1702.7,1702.6,0.05]
[1693418184793,14.61952065,1702.7,1702.6,0.05]
[1693418186310,8.74650065,1702.7,1702.6,0.05]
[1693418195009,20.49254065,1702.7,1702.6,0.05]
[1693418195173,21.92754065,1702.7,1702.6,0.05]
[1693418195367,25.02117033,1702.7,1702.6,0.05]
[1693418197290,25.50117033,1702.7,1702.6,0.05]
[1693418205694,24.06617033,1702.7,1702.6,0.05]
[1693418205900,23.58617033,1702.7,1702.6,0.05]
[1693418207128,25.02117033,1702.7,1702.6,0.05]
[1693418215657,25.50117033,1702.7,1702.6,0.05]
[1693418219582,28.50117033,1702.7,1702.6,0.05]
[1693418221080,29.73448693,1702.7,1702.6,0.05]
[1693418223277,29.96969393,1702.7,1702.6,0.05]
[1693418224183,31.51133968,1702.7,1702.6,0.05]
[1693418225567,29.96969393,1702.7,1702.6,0.05]
[1693418226663,31.51133968,1702.7,1702.6,0.05]
[1693418227486,29.96969393,1702.7,1702.6,0.05]
[1693418227959,31.51133968,1702.7,1702.6,0.05]
[1693418230760,30.27802308,1702.7,1702.6,0.05]
[1693418235364,29.96841895,1702.7,1702.6,0.05]
[1693418236789,31.5100647,1702.7,1702.6,0.05]
[1693418237170,31.51007545,1702.7,1702.6,0.05]
[1693418240004,30.27802308,1702.7,1702.6,0.05]
[1693418241508,31.50987881,1702.7,1702.6,0.05]
[1693418241808,31.50988346,1702.7,1702.6,0.05]
[1693418244075,31.50988346,1702.7,1702.4,2.4826]
[1693418244277,8.10681965,1702.6,1702.4,2.4826]
[1693418244477,17.62113,1702.5,1702.4,2.4826]
[1693418244688,20.49461065,1702.5,1702.4,2.4826]
[1693418246811,20.97461065,1702.5,1702.4,2.4826]
[1693418248509,22.40961065,1702.5,1702.4,2.4826]
[1693418248809,25.50324033,1702.5,1702.4,0.05]
[1693418249911,26.73510071,1702.5,1702.3,2.286]
[1693418250151,4.30848065,1702.4,1702.3,2.286]
[1693418250287,24.16399965,1702.4,1702.3,2.286]
[1693418251783,24.64399965,1702.4,1702.3,2.286]
[1693418255437,24.64399965,1702.4,1702.3,2.186]
[1693418257024,24.64399965,1702.4,1702.2,0.1]
[1693418257025,27.64399965,1702.4,1702.2,0.1]
[1693418257229,3.35348065,1702.3,1702.2,0.1]
[1693418257527,23.61226665,1702.3,1702.2,0.1]
[1693418257913,26.61226665,1702.3,1702.2,0.1]
[1693418258225,28.04726665,1702.3,1702.2,0.1]
[1693418261142,28.04726665,1702.3,1702.0,2.368]